fUST/lending_fUST_20250827
["ID","MTS","AMOUNT","RATE_DAILY","PERIOD"]
[381627587,1756299089423,-1132.23,0.00023013,2]
[381627588,1756299089432,-480.0,0.00023013,2]
[381627589,1756299089441,-480.0,0.00023013,2]
[381627590,1756299089450,-1020.11,0.00023013,2]
[381627591,1756299089460,-630.18,0.00023013,2]
[381627592,1756299089470,-987.21,0.00023013,2]
[381627593,1756299089479,-480.0,0.00023013,2]
[381627594,1756299089489,-480.0,0.00023013,2]
[381627595,1756299089499,-480.0,0.00023013,2]
[381627596,1756299089511,-480.0,0.00023013,2]
[381627597,1756299089528,-480.0,0.00023013,2]
[381627598,1756299089545,-480.0,0.00023013,2]
[381627599,1756299089555,-480.0,0.00023013,2]
[381627600,1756299089565,-561.06,0.00023013,2]
[381627601,1756299089575,-480.0,0.00023013,2]
[381627602,1756299089584,-480.0,0.00023013,2]
[381627603,1756299089594,-544.78,0.00023013,2]
[381627604,1756299089603,-655.34,0.00023013,2]
[381627605,1756299089612,-480.0,0.00023013,2]
[381627606,1756299089622,-660.63,0.00023013,2]
[381627607,1756299089631,-1338.48,0.00023013,2]
[381627608,1756299089641,-935.85,0.00023013,2]
[381627609,1756299089650,-480.0,0.00023013,2]
[381627610,1756299089661,-480.0,0.00023013,2]
[381627611,1756299089671,-775.56,0.00023013,2]
[381627612,1756299089683,-480.0,0.00023013,2]
[381627613,1756299089693,-480.0,0.00023013,2]
[381627614,1756299089702,-651.24,0.00023013,2]
[381627615,1756299089712,-480.0,0.00023013,2]
[381627616,1756299089721,-480.0,0.00023013,2]
[381627617,1756299089731,-1057.73,0.00023013,2]
[381627618,1756299089740,-761.3,0.00023013,2]
[381627619,1756299089750,-631.68,0.00023013,2]
[381627620,1756299089759,-520.4,0.00023013,2]
[381627621,1756299089768,-628.89,0.00023013,2]
[381627622,1756299089777,-733.13,0.00023013,2]
[381627623,1756299089786,-480.0,0.00023013,2]
[381627624,1756299089795,-480.0,0.00023013,2]
[381627625,1756299089804,-480.0,0.00023013,2]
[381627626,1756299089814,-1793.19,0.00023013,2]
[381627627,1756299089823,-1312.96,0.00023013,2]
[381627628,1756299089832,-480.0,0.00023013,2]
[381627629,1756299089841,-480.0,0.00023013,2]
[381627630,1756299089850,-480.0,0.00023013,2]
[381627631,1756299089860,-480.0,0.00023013,2]
[381627632,1756299089869,-594.15,0.00023013,2]
[381627633,1756299089878,-153.2131031,0.00023013,2]
[381627634,1756299089887,-628.83,0.00023013,2]
[381627635,1756299089897,-480.0,0.00023013,2]
[381627636,1756299089906,-480.0,0.00023013,2]
[381627637,1756299089916,-480.0,0.00023013,2]
[381627638,1756299089925,-902.71,0.00023013,2]
[381627639,1756299089935,-165.71628818,0.00023013,2]
[381627640,1756299089944,-480.0,0.00023013,2]
[381627641,1756299089953,-591.53,0.00023013,2]
[381627642,1756299089963,-480.0,0.00023013,2]
[381627643,1756299089973,-480.0,0.00023013,2]
[381627644,1756299089982,-480.0,0.00023013,2]
[381627645,1756299089991,-480.0,0.00023013,2]
[381627646,1756299090001,-480.0,0.00023013,2]
[381627647,1756299090011,-818.78,0.00023013,2]
[381627648,1756299090020,-480.0,0.00023013,2]
[381627649,1756299090030,-480.0,0.00023013,2]
[381627650,1756299090039,-858.98,0.00023013,2]
[381627651,1756299090048,-480.0,0.00023013,2]
[381627652,1756299090058,-480.0,0.00023013,2]
[381627653,1756299090068,-746.51,0.00023013,2]
[381627654,1756299090078,-480.0,0.00023013,2]
[381627655,1756299090088,-480.0,0.00023013,2]
[381627656,1756299090098,-480.0,0.00023013,2]
[381627657,1756299090107,-480.0,0.00023013,2]
[381627658,1756299090116,-480.0,0.00023013,2]
[381627659,1756299090126,-480.0,0.00023013,2]
[381627660,1756299090135,-480.0,0.00023013,2]
[381627661,1756299090145,-625.32,0.00023013,2]
[381627662,1756299090156,-480.0,0.00023013,2]
[381627663,1756299090165,-1365.1,0.00023013,2]
[381627664,1756299090176,-480.0,0.00023013,2]
[381627665,1756299090186,-480.0,0.00023013,2]
[381627666,1756299090196,-480.0,0.00023013,2]
[381627667,1756299090205,-497.34,0.00023013,2]
[381627668,1756299090215,-497.34,0.00023013,2]
[381627669,1756299090224,-624.5,0.00023013,2]
[381627670,1756299090233,-1152.04,0.00023013,2]
[381627671,1756299090243,-2015.87,0.00023013,2]
[381627672,1756299090254,-579.93,0.00023013,2]
[381627673,1756299090263,-599.34,0.00023013,2]
[381627674,1756299090272,-810.1,0.00023013,2]
[381627675,1756299090282,-793.74,0.00023013,2]
[381627676,1756299090291,-1099.58,0.00023013,2]
[381627677,1756299090300,-480.0,0.00023013,2]
[381627678,1756299090310,-480.0,0.00023013,2]
[381627679,1756299090319,-480.0,0.00023013,2]
[381627680,1756299090328,-480.0,0.00023013,2]
[381627681,1756299090338,-480.0,0.00023013,2]
[381627682,1756299090347,-480.0,0.00023013,2]
[381627683,1756299090356,-736.43,0.00023013,2]
[381627684,1756299090365,-1838.61,0.00023013,2]
[381627685,1756299090374,-898.68,0.00023013,2]
[381627686,1756299090383,-480.0,0.00023013,2]
[381627687,1756299090392,-480.0,0.00023013,2]
[381627688,1756299090401,-916.71,0.00023013,2]
[381627689,1756299090410,-480.0,0.00023013,2]
[381627690,1756299090419,-480.0,0.00023013,2]
[381627691,1756299090430,-480.0,0.00023013,2]
[381627692,1756299090440,-480.0,0.00023013,2]
[381627693,1756299090450,-521.43,0.00023013,2]
[381627694,1756299090460,-480.0,0.00023013,2]
[381627695,1756299090469,-480.0,0.00023013,2]
[381627696,1756299090479,-480.0,0.00023013,2]
[381627697,1756299090488,-539.62,0.00023013,2]
[381627698,1756299090497,-481.90731507,0.00023013,2]
[381627699,1756299090507,-727.24,0.00023013,2]
[381627700,1756299090517,-480.0,0.00023013,2]
[381627701,1756299090526,-480.0,0.00023013,2]
[381627702,1756299090535,-1170.25,0.00023013,2]
[381627703,1756299090545,-480.0,0.00023013,2]
[381627704,1756299090555,-1026.14,0.00023013,2]
[381627705,1756299090564,-909.76,0.00023013,2]
[381627706,1756299090573,-480.0,0.00023013,2]
[381627707,1756299090583,-480.0,0.00023013,2]
[381627708,1756299090592,-480.0,0.00023013,2]
[381627709,1756299090601,-962.75,0.00023013,2]
[381627710,1756299090610,-480.0,0.00023013,2]
[381627711,1756299090619,-1249.43,0.00023013,2]
[381627712,1756299090629,-711.06,0.00023013,2]
[381627713,1756299090639,-480.0,0.00023013,2]
[381627714,1756299090648,-480.0,0.00023013,2]
[381627715,1756299090657,-480.0,0.00023013,2]
[381627716,1756299090666,-480.0,0.00023013,2]
[381627717,1756299090678,-480.0,0.00023013,2]
[381627718,1756299090687,-480.0,0.00023013,2]
[381627719,1756299090696,-780.75,0.00023013,2]
[381627720,1756299090705,-670.56,0.00023013,2]
[381627721,1756299090714,-480.0,0.00023013,2]
[381627722,1756299090724,-633.62,0.00023013,2]
[381627723,1756299090733,-638.03,0.00023013,2]
[381627724,1756299090742,-480.0,0.00023013,2]
[381627725,1756299090751,-886.17,0.00023013,2]
[381627726,1756299090760,-1346.67,0.00023013,2]
[381627727,1756299090769,-480.0,0.00023013,2]
[381627728,1756299090779,-677.64,0.00023013,2]
[381627729,1756299090788,-480.0,0.00023013,2]
[381627730,1756299090798,-480.0,0.00023013,2]
[381627731,1756299090807,-480.0,0.00023013,2]
[381627732,1756299090816,-480.0,0.00023013,2]
[381627733,1756299090825,-741.13,0.00023013,2]
[381627734,1756299090834,-480.0,0.00023013,2]
[381627735,1756299090844,-952.53,0.00023013,2]
[381627736,1756299090854,-480.0,0.00023013,2]
[381627737,1756299090863,-635.74,0.00023013,2]
[381627738,1756299090872,-480.0,0.00023013,2]
[381627739,1756299090882,-480.0,0.00023013,2]
[381627740,1756299090891,-480.0,0.00023013,2]
[381627741,1756299090901,-508.7,0.00023013,2]
[381627742,1756299090910,-574.03,0.00023013,2]
[381627743,1756299090919,-480.0,0.00023013,2]
[381627744,1756299090929,-480.0,0.00023013,2]
[381627745,1756299090939,-480.0,0.00023013,2]
[381627746,1756299090948,-687.48,0.00023013,2]
[381627747,1756299090957,-480.0,0.00023013,2]
[381627748,1756299090967,-480.0,0.00023013,2]
[381627749,1756299090976,-1268.98,0.00023013,2]
[381627750,1756299090986,-480.0,0.00023013,2]
[381627751,1756299090995,-480.0,0.00023013,2]
[381627752,1756299091004,-856.71,0.00023013,2]
[381627753,1756299091013,-480.0,0.00023013,2]
[381627754,1756299091022,-6495.25,0.00023013,2]
[381627755,1756299091031,-500.0,0.00023013,2]
[381627756,1756299091041,-636.86,0.00023013,2]
[381627757,1756299091051,-480.0,0.00023013,2]
[381627758,1756299091063,-359.59148184,0.00023013,2]
[381627759,1756299091073,-905.99,0.00023013,2]
[381627760,1756299091221,-480.0,0.00023013,2]
[381627761,1756299091231,-524.69,0.00023013,2]
[381627762,1756299091240,-486.07,0.00023013,2]
[381627763,1756299091251,-1458.92,0.00023013,2]
[381627764,1756299091260,-283.54105427,0.00023013,2]
[381627765,1756299091270,-514.51136357,0.00023013,2]
[381627766,1756299091279,-837.39,0.00023013,2]
[381627767,1756299091288,-1847.92,0.00023013,2]
[381627768,1756299091298,-624.44,0.00023013,2]
[381627769,1756299091308,-480.0,0.00023013,2]
[381627770,1756299091317,-8247.96,0.00023013,2]
[381627771,1756299091326,-771.49,0.00023013,2]
[381627772,1756299091335,-1529.63,0.00023013,2]
[381627773,1756299091345,-583.48,0.00023013,2]
[381627774,1756299091354,-3400.62,0.00023013,2]
[381627775,1756299091363,-480.0,0.00023013,2]
[381627776,1756299091374,-480.0,0.00023013,2]
[381627777,1756299091383,-480.0,0.00023013,2]
[381627778,1756299091392,-480.0,0.00023013,2]
[381627779,1756299091401,-480.0,0.00023013,2]
[381627780,1756299091411,-549.29195571,0.00023013,2]
[381627781,1756299091422,-1076.84,0.00023013,2]
[381627782,1756299091432,-480.0,0.00023013,2]
[381627783,1756299091441,-1635.61,0.00023013,2]
[381627784,1756299091452,-480.0,0.00023013,2]
[381627785,1756299091461,-480.0,0.00023013,2]
[381627786,1756299091471,-503.12179041,0.00023013,2]
[381627787,1756299091481,-564.33,0.00023013,2]
[381627788,1756299091490,-480.0,0.00023013,2]
[381627789,1756299091500,-740.19,0.00023013,2]
[381627790,1756299091509,-1200.96,0.00023013,2]
[381627791,1756299091518,-480.0,0.00023013,2]
[381627792,1756299091527,-1559.95,0.00023013,2]
[381627793,1756299091536,-1003.43,0.00023013,2]
[381627794,1756299091546,-480.0,0.00023013,2]
[381627795,1756299091555,-480.0,0.00023013,2]
[381627796,1756299091564,-655.25,0.00023013,2]
[381627797,1756299091574,-480.0,0.00023013,2]
[381627798,1756299091584,-1004.24,0.00023013,2]
[381627799,1756299091593,-480.0,0.00023013,2]
[381627800,1756299091603,-1160.02,0.00023013,2]
[381627801,1756299091613,-626.39,0.00023013,2]
[381627802,1756299091623,-440.9062726,0.00023013,2]
[381627803,1756299091632,-480.0,0.00023013,2]
[381627804,1756299091642,-480.0,0.00023013,2]
[381627805,1756299091653,-480.0,0.00023013,2]
[381627806,1756299091663,-504.38,0.00023013,2]
[381627807,1756299091674,-868.0,0.00023013,2]
[381627808,1756299091686,-748.48,0.00023013,2]
[381627809,1756299091695,-632.12,0.00023013,2]
[381627810,1756299091704,-656.18,0.00023013,2]
[381627811,1756299091715,-480.0,0.00023013,2]
[381627812,1756299091725,-480.0,0.00023013,2]
[381627813,1756299091733,-480.0,0.00023013,2]
[381627814,1756299091740,-515.28,0.00023013,2]
[381627815,1756299091749,-639.39,0.00023013,2]
[381627816,1756299091757,-1553.38,0.00023013,2]
[381627817,1756299091766,-860.92,0.00023013,2]
[381627818,1756299091774,-707.77,0.00023013,2]
[381627819,1756299091783,-961.78,0.00023013,2]
[381627820,1756299091792,-480.0,0.00023013,2]
[381627821,1756299091802,-621.34,0.00023013,2]
[381627822,1756299091811,-480.0,0.00023013,2]
[381627823,1756299091821,-480.0,0.00023013,2]
[381627824,1756299091830,-507.0,0.00023013,2]
[381627825,1756299091840,-565.6315448,0.00023013,2]
[381627826,1756299091849,-480.0,0.00023013,2]
[381627827,1756299091858,-480.0,0.00023013,2]
[381627828,1756299091867,-2093.04,0.00023013,2]
[381627829,1756299091877,-480.0,0.00023013,2]
[381627830,1756299091886,-480.0,0.00023013,2]
[381627831,1756299091895,-481.67,0.00023013,2]
[381627832,1756299091905,-480.0,0.00023013,2]
[381627833,1756299091915,-861.82,0.00023013,2]
[381627834,1756299091925,-906.46,0.00023013,2]
[381627835,1756299091934,-500.0,0.00023013,2]
[381627836,1756299091943,-1944.4,0.00023013,2]
[381627837,1756299091952,-480.0,0.00023013,2]
[381627838,1756299091961,-480.0,0.00023013,2]
[381627839,1756299091970,-480.0,0.00023013,2]
[381627840,1756299091980,-480.0,0.00023013,2]
[381627841,1756299091990,-480.0,0.00023013,2]
[381627842,1756299091999,-756.21,0.00023013,2]
[381627843,1756299092009,-691.47,0.00023013,2]
[381627844,1756299092018,-5734.46,0.00023013,2]
[381627845,1756299092027,-669.41,0.00023013,2]
[381627846,1756299092036,-822.12,0.00023013,2]
[381627847,1756299092045,-664.01,0.00023013,2]
[381627848,1756299092052,-480.0,0.00023013,2]
[381627849,1756299092061,-480.0,0.00023013,2]
[381627850,1756299092070,-480.0,0.00023013,2]
[381627851,1756299092080,-480.0,0.00023013,2]
[381627852,1756299092090,-1472.58,0.00023013,2]
[381627853,1756299092101,-480.0,0.00023013,2]
[381627854,1756299092110,-480.0,0.00023013,2]
[381627855,1756299092119,-480.0,0.00023013,2]
[381627856,1756299092129,-480.0,0.00023013,2]
[381627857,1756299092138,-1010.62,0.00023013,2]
[381627858,1756299092147,-480.0,0.00023013,2]
[381627859,1756299092158,-746.58,0.00023013,2]
[381627860,1756299092168,-945.67,0.00023013,2]
[381627861,1756299092177,-480.0,0.00023013,2]
[381627862,1756299092186,-482.96782084,0.00023013,2]
[381627863,1756299092196,-820.03,0.00023013,2]
[381627864,1756299092205,-2419.42,0.00023013,2]
[381627865,1756299092214,-2003.06,0.00023013,2]
[381627866,1756299092223,-339.46258677,0.00023013,2]
[381627867,1756299092232,-712.33,0.00023013,2]
[381627868,1756299092242,-632.8,0.00023013,2]
[381627869,1756299092251,-480.0,0.00023013,2]
[381627870,1756299092260,-1302.43,0.00023013,2]
[381627871,1756299092269,-480.0,0.00023013,2]
[381627872,1756299092278,-480.0,0.00023013,2]
[381627873,1756299092287,-879.19,0.00023013,2]
[381627874,1756299092296,-2358.04,0.00023013,2]
[381627875,1756299092305,-626.24,0.00023013,2]
[381627876,1756299092315,-571.94,0.00023013,2]
[381627877,1756299092324,-328.04481692,0.00023013,2]
[381627878,1756299092334,-1028.29,0.00023013,2]
[381627879,1756299092344,-156.57748121,0.00023013,2]
[381627880,1756299092354,-480.0,0.00023013,2]
[381627881,1756299092365,-480.0,0.00023013,2]
[381627882,1756299092374,-480.0,0.00023013,2]
[381627883,1756299092383,-259.63379201,0.00023013,2]
[381627884,1756299092393,-760.04,0.00023013,2]
[381627885,1756299092403,-480.0,0.00023013,2]
[381627886,1756299092413,-534.07,0.00023013,2]
[381627887,1756299092422,-480.0,0.00023013,2]
[381627888,1756299092431,-480.0,0.00023013,2]
[381627889,1756299092441,-480.0,0.00023013,2]
[381627890,1756299092451,-480.0,0.00023013,2]
[381627891,1756299092461,-773.62,0.00023013,2]
[381627892,1756299092470,-480.0,0.00023013,2]
[381627893,1756299092480,-480.0,0.00023013,2]
[381627894,1756299092489,-579.37,0.00023013,2]
[381627895,1756299092499,-3533.68,0.00023013,2]
[381627896,1756299092509,-481.34,0.00023013,2]
[381627897,1756299092518,-689.04,0.00023013,2]
[381627898,1756299092528,-1078.58,0.00023013,2]
[381627899,1756299092538,-480.0,0.00023013,2]
[381627900,1756299092547,-558.49,0.00023013,2]
[381627901,1756299092557,-480.0,0.00023013,2]
[381627902,1756299092566,-480.0,0.00023013,2]
[381627903,1756299092576,-480.0,0.00023013,2]
[381627904,1756299092585,-480.0,0.00023013,2]
[381627905,1756299092595,-877.94,0.00023013,2]
[381627906,1756299092604,-657.92,0.00023013,2]
[381627907,1756299092614,-480.0,0.00023013,2]
[381627908,1756299092623,-541.91,0.00023013,2]
[381627909,1756299092633,-480.0,0.00023013,2]
[381627910,1756299092643,-680.84,0.00023013,2]
[381627911,1756299092652,-1306.03,0.00023013,2]
[381627912,1756299092662,-4136.98,0.00023013,2]
[381627913,1756299092670,-480.0,0.00023013,2]
[381627914,1756299092684,-480.0,0.00023013,2]
[381627915,1756299092692,-621.75490926,0.00023013,2]
[381627916,1756299092700,-1546.75,0.00023013,2]
[381627917,1756299092710,-611.17,0.00023013,2]
[381627918,1756299092719,-745.97,0.00023013,2]
[381627919,1756299092729,-483.6,0.00023013,2]
[381627920,1756299092738,-365.18691165,0.00023013,2]
[381627921,1756299092747,-2253.99,0.00023013,2]
[381627922,1756299092756,-1237.23,0.00023013,2]
[381627923,1756299092766,-4927.91,0.00023013,2]
[381627924,1756299092775,-567.22560353,0.00023013,2]
[381627925,1756299092784,-480.0,0.00023013,2]
[381627926,1756299092793,-727.85,0.00023013,2]
[381627927,1756299092803,-711.45,0.00023013,2]
[381627928,1756299092812,-526.58518715,0.00023013,2]
[381627929,1756299092822,-681.98,0.00023013,2]
[381627930,1756299092832,-2444.85,0.00023013,2]
[381627931,1756299092841,-1837.84,0.00023013,2]
[381627932,1756299092851,-1897.45,0.00023013,2]
[381627933,1756299092860,-2263.07,0.00023013,2]
[381627934,1756299092869,-4617.09,0.00023013,2]
[381627935,1756299092879,-480.0,0.00023013,2]
[381627936,1756299092889,-867.08,0.00023013,2]
[381627937,1756299092899,-480.0,0.00023013,2]
[381627938,1756299092908,-480.0,0.00023013,2]
[381627939,1756299092917,-1079.7,0.00023013,2]
[381627940,1756299092927,-480.0,0.00023013,2]
[381627941,1756299092936,-480.0,0.00023013,2]
[381627942,1756299092944,-2907.91,0.00023013,2]
[381627943,1756299092953,-576.96,0.00023013,2]
[381627944,1756299092961,-1354.76,0.00023013,2]
[381627945,1756299092970,-2286.82,0.00023013,2]
[381627946,1756299092979,-480.0,0.00023013,2]
[381627947,1756299092988,-480.0,0.00023013,2]
[381627948,1756299092998,-1707.9,0.00023013,2]
[381627949,1756299093008,-812.92,0.00023013,2]
[381627950,1756299093018,-1062.67,0.00023013,2]
[381627951,1756299093027,-480.0,0.00023013,2]
[381627952,1756299093036,-739.93,0.00023013,2]
[381627953,1756299093046,-3535.34,0.00023013,2]
[381627954,1756299093057,-550.73,0.00023013,2]
[381627955,1756299093067,-679.72,0.00023013,2]
[381627956,1756299093076,-829.46,0.00023013,2]
[381627957,1756299093086,-695.89,0.00023013,2]
[381627958,1756299093095,-577.42,0.00023013,2]
[381627959,1756299093107,-680.83,0.00023013,2]
[381627960,1756299093116,-600.93,0.00023013,2]
[381627961,1756299093126,-480.0,0.00023013,2]
[381627962,1756299093135,-1995.59,0.00023013,2]
[381627963,1756299093144,-480.0,0.00023013,2]
[381627964,1756299093154,-1631.46,0.00023013,2]
[381627965,1756299093163,-1590.45,0.00023013,2]
[381627966,1756299093173,-480.0,0.00023013,2]
[381627967,1756299093182,-539.05,0.00023013,2]
[381627968,1756299093192,-443.1953117,0.00023013,2]
[381627969,1756299093202,-712.28,0.00023013,2]
[381627970,1756299093212,-638.72,0.00023013,2]
[381627971,1756299093225,-480.0,0.00023013,2]
[381627972,1756299093235,-480.0,0.00023013,2]
[381627973,1756299093245,-480.0,0.00023013,2]
[381627974,1756299093255,-480.0,0.00023013,2]
[381627975,1756299093264,-480.0,0.00023013,2]
[381627976,1756299093274,-755.02,0.00023013,2]
[381627977,1756299093283,-483.58089724,0.00023013,2]
[381627978,1756299093297,-480.0,0.00023013,2]
[381627979,1756299093449,-789.18,0.00023013,2]
[381627980,1756299093460,-480.0,0.00023013,2]
[381627981,1756299093470,-685.55,0.00023013,2]
[381627982,1756299093480,-480.0,0.00023013,2]
[381627983,1756299093490,-2224.28,0.00023013,2]
[381627984,1756299093500,-480.0,0.00023013,2]
[381627985,1756299093510,-480.0,0.00023013,2]
[381627986,1756299093520,-480.0,0.00023013,2]
[381627987,1756299093529,-622.18,0.00023013,2]
[381627988,1756299093540,-1015.89,0.00023013,2]
[381627989,1756299093550,-480.0,0.00023013,2]
[381627990,1756299093560,-480.0,0.00023013,2]
[381627991,1756299093571,-1801.64,0.00023013,2]
[381627992,1756299093582,-631.08,0.00023013,2]
[381627993,1756299093592,-480.0,0.00023013,2]
[381627994,1756299093602,-480.0,0.00023013,2]
[381627995,1756299093612,-678.47,0.00023013,2]
[381627996,1756299093622,-480.0,0.00023013,2]
[381627997,1756299093633,-908.23,0.00023013,2]
[381627998,1756299093642,-480.0,0.00023013,2]
[381627999,1756299093652,-480.0,0.00023013,2]
[381628000,1756299093663,-698.69,0.00023013,2]
[381628001,1756299093675,-2888.9,0.00023013,2]
[381628002,1756299093686,-480.0,0.00023013,2]
[381628003,1756299093696,-480.0,0.00023013,2]
[381628004,1756299093706,-901.06,0.00023013,2]
[381628005,1756299093716,-480.0,0.00023013,2]
[381628006,1756299093726,-480.0,0.00023013,2]
[381628007,1756299093735,-465.02409394,0.00023013,2]
[381628008,1756299093745,-1290.3,0.00023013,2]
[381628009,1756299093755,-1110.35,0.00023013,2]
[381628010,1756299093765,-911.51,0.00023013,2]
[381628011,1756299093775,-711.28,0.00023013,2]
[381628012,1756299093784,-480.0,0.00023013,2]
[381628013,1756299093794,-492.57,0.00023013,2]
[381628014,1756299093803,-405.99057147,0.00023013,2]
[381628015,1756299093813,-1247.14,0.00023013,2]
[381628016,1756299093823,-480.0,0.00023013,2]
[381628017,1756299093833,-350.0,0.00023014,2]
[381628018,1756299093843,-500.0,0.00023068,2]
[381628019,1756299093852,-717.31728907,0.00023125,2]
[381628020,1756299093861,-2500.0,0.00023125,2]
[381628021,1756299093871,-509.295792,0.00023125,2]
[381628022,1756299093880,-2500.0,0.00023125,2]
[381628023,1756299093890,-1264.85274484,0.00023125,2]
[381628024,1756299093899,-2500.0,0.00023125,2]
[381628025,1756299093909,-2500.0,0.00023125,2]
[381628026,1756299093925,-2500.0,0.00023125,2]
[381628027,1756299093934,-720.0,0.00023133,20]
[381628028,1756299093943,-2500.0,0.00023177,2]
[381628029,1756299093953,-7731.92,0.000232,7]
[381628030,1756299093962,-10778.9086713,0.0002321,2]
[381628031,1756299093972,-2500.0,0.00023217,2]
[381628032,1756299093984,-2500.0,0.00023217,2]
[381628033,1756299093998,-3175.4145193,0.00023221,2]
[381628034,1756299094008,-153.0,0.00023232,2]
[381628035,1756299094017,-153.0,0.00023232,2]
[381628036,1756299094026,-153.0,0.00023232,2]
[381628037,1756299094036,-153.0,0.00023232,2]
[381628038,1756299094045,-153.0,0.00023232,2]
[381628039,1756299094054,-153.0,0.00023232,2]
[381628040,1756299094064,-500.0,0.00023232,2]
[381628041,1756299094073,-689.1111519,0.00023242,2]
[381628042,1756299094082,-2753.688163,0.00023242,2]
[381628043,1756299094091,-390.45272413,0.00023242,2]
[381628044,1756299094101,-706.10459254,0.00023242,2]
[381628045,1756299094111,-151.0,0.00023266,2]
[381628046,1756299094120,-199.3005907,0.00023266,2]
[381628047,1756299094129,-2419.4711646,0.00023277,2]
[381628048,1756299094138,-304.55704012,0.00023284,2]
[381628049,1756299094147,-151.0,0.00023284,2]
[381628050,1756299094157,-500.0,0.00023284,2]
[381628051,1756299094167,-456.19506388,0.00023284,2]
[381628052,1756299094176,-1015.0,0.00023284,2]
[381628053,1756299094185,-202.85787161,0.00023286,2]
[381628054,1756299094195,-480.0,0.00023287,2]
[381628055,1756299094204,-480.0,0.00023287,2]
[381628056,1756299094213,-480.0,0.00023287,2]
[381628057,1756299094222,-480.0,0.00023287,2]
[381628058,1756299094231,-480.0,0.00023287,2]
[381628059,1756299094242,-480.0,0.00023287,2]
[381628060,1756299094251,-480.0,0.00023287,2]
[381628061,1756299094260,-480.0,0.00023287,2]
[381628062,1756299094269,-493.86,0.00023287,2]
[381628063,1756299094280,-480.0,0.00023287,2]
[381628064,1756299094290,-480.0,0.00023287,2]
[381628065,1756299094309,-480.0,0.00023287,2]
[381628066,1756299094327,-480.0,0.00023287,2]
[381628067,1756299094337,-480.0,0.00023287,2]
[381628068,1756299094346,-562.7,0.00023287,2]
[381628069,1756299094356,-524.95,0.00023287,2]
[381628070,1756299094366,-480.0,0.00023287,2]
[381628071,1756299094375,-538.52,0.00023287,2]
[381628072,1756299094384,-550.62,0.00023287,2]
[381628073,1756299094393,-480.0,0.00023287,2]
[381628074,1756299094403,-260.56026011,0.00023287,2]
[381628075,1756299094412,-480.0,0.00023287,2]
[381628076,1756299094422,-576.16,0.00023287,2]
[381628077,1756299094431,-662.66,0.00023287,2]
[381628078,1756299094440,-582.51,0.00023287,2]
[381628079,1756299094450,-480.0,0.00023287,2]
[381628080,1756299094459,-500.0,0.00023287,2]
[381628081,1756299094485,-401.20508584,0.00023287,2]
[381628082,1756299094502,-480.0,0.00023287,2]
[381628083,1756299094521,-480.0,0.00023287,2]
[381628084,1756299094541,-480.0,0.00023287,2]
[381628085,1756299094560,-523.83,0.00023287,2]
[381628086,1756299094579,-151.0,0.00023287,7]